bitfinex-derivatives/quotes_BTCF0:USTF0_20251023
["timestamp","ask_amount","ask_price","bid_price","bid_amount"]
[1761228217870,0.76883665,109580.0,109570.0,0.1346583]
[1761228218455,0.54883665,109580.0,109570.0,0.1346583]
[1761228218659,0.33752,109580.0,109570.0,0.1346583]
[1761228218955,0.54883665,109580.0,109570.0,0.1346583]
[1761228221257,0.22431665,109580.0,109570.0,0.1346583]
[1761228221762,0.003,109580.0,109570.0,0.1346583]
[1761228223073,0.21431665,109580.0,109570.0,0.1346583]
[1761228226174,0.21431665,109580.0,109570.0,0.14375194]
[1761228226474,0.21431665,109580.0,109570.0,0.1346583]
[1761228226978,0.003,109580.0,109570.0,0.1346583]
[1761228227576,0.003,109580.0,109570.0,0.5346583]
[1761228227876,0.53563665,109600.0,109590.0,0.1346417]
[1761228228073,0.21131665,109610.0,109600.0,0.1476334]
[1761228228278,0.8926333,109610.0,109590.0,0.0912255]
[1761228228469,0.7469533,109600.0,109590.0,0.0912255]
[1761228228668,0.53563665,109600.0,109590.0,0.1346355]
[1761228229171,0.53763665,109600.0,109590.0,0.1346355]
[1761228230877,0.53563665,109600.0,109590.0,0.1346355]
[1761228231079,0.53663665,109600.0,109590.0,0.1346355]
[1761228231471,0.53863665,109600.0,109590.0,0.1346355]
[1761228233371,0.21431665,109600.0,109590.0,0.1346355]
[1761228235383,0.4256333,109600.0,109590.0,0.1346355]
[1761228235585,0.21431665,109600.0,109590.0,0.1346355]
[1761228235788,0.21331665,109600.0,109590.0,0.1346355]
[1761228235982,0.21131665,109600.0,109590.0,0.1346355]
[1761228236173,0.21131665,109600.0,109590.0,0.0912317]
[1761228236377,0.4426333,109600.0,109580.0,0.1503142]
[1761228236584,0.53555665,109590.0,109580.0,0.1274542]
[1761228236784,0.53555665,109590.0,109580.0,0.1503142]
[1761228237380,0.03276355,109610.0,109600.0,0.01272]
[1761228237381,0.05734347,109610.0,109600.0,0.01272]
[1761228237681,0.05734347,109610.0,109580.0,0.1274543]
[1761228237682,1.06013657,109610.0,109580.0,0.1274543]
[1761228237880,0.21131665,109590.0,109580.0,0.1503133]
[1761228239486,0.21131665,109590.0,109580.0,0.15032]
[1761228240185,0.23589657,109590.0,109580.0,0.15032]
[1761228240383,0.56013657,109590.0,109580.0,0.15032]
[1761228241990,0.9883202,109590.0,109570.0,0.1373269]
[1761228242194,0.23586296,109580.0,109570.0,0.1373269]
[1761228242489,0.28056606,109580.0,109560.0,0.1503361]
[1761228242684,0.02457879,109570.0,109560.0,0.1503361]
[1761228242883,0.23589544,109570.0,109560.0,0.1503361]
[1761228243590,0.23589544,109570.0,109560.0,0.05908]
[1761228243895,0.63757778,109570.0,109550.0,0.1144843]
[1761228244083,0.05735738,109560.0,109550.0,0.1373443]
[1761228244390,0.02458566,109560.0,109550.0,0.1373443]
[1761228245586,0.23590231,109560.0,109550.0,0.1373443]
[1761228245792,0.23590231,109560.0,109550.0,0.04608]
[1761228246090,0.24408837,109560.0,109550.0,0.04608]
[1761228246386,0.26865998,109560.0,109550.0,0.04608]
[1761228246593,0.26865998,109560.0,109540.0,0.00456433]
[1761228246594,0.94465443,109560.0,109540.0,0.00456433]
[1761228246789,0.5601286,109550.0,109540.0,0.01728433]
[1761228246990,0.56832837,109550.0,109540.0,0.04050433]
[1761228247187,0.59290161,109550.0,109540.0,0.04050433]
[1761228247388,0.56012989,109550.0,109540.0,0.04050433]
[1761228247792,0.56012989,109550.0,109540.0,0.15463763]
[1761228247992,0.34881324,109550.0,109540.0,0.15463763]
[1761228248191,0.56112989,109550.0,109540.0,0.15463763]
[1761228248694,0.56012989,109550.0,109540.0,0.15463763]
[1761228249484,0.53555665,109550.0,109540.0,0.15463763]
[1761228249685,0.23588989,109560.0,109550.0,0.091265]
[1761228249890,0.23588989,109560.0,109550.0,0.137345]
[1761228250197,0.53555665,109560.0,109550.0,0.137345]
[1761228251492,0.32524,109560.0,109550.0,0.137345]
[1761228251905,0.53655665,109560.0,109550.0,0.137345]
[1761228252694,0.53655665,109560.0,109550.0,0.114485]
[1761228252895,0.53655665,109560.0,109550.0,0.091265]
[1761228253101,0.81244654,109560.0,109540.0,0.13177133]
[1761228253294,0.21131665,109550.0,109540.0,0.00456433]
[1761228253492,0.21131665,109550.0,109540.0,0.10855763]
[1761228253792,0.21131665,109550.0,109540.0,0.06336433]
[1761228253992,1.04333778,109550.0,109540.0,0.00456433]
[1761228254292,1.82188271,109550.0,109510.0,0.00011418]
[1761228254498,0.4226333,109520.0,109510.0,0.00011418]
[1761228254691,0.67835601,109520.0,109510.0,0.00011418]
[1761228254889,0.67835601,109520.0,109510.0,0.04619418]
[1761228255203,0.67835601,109520.0,109510.0,0.13749248]
[1761228256096,0.35407601,109520.0,109510.0,0.13749248]
[1761228256394,0.67835601,109520.0,109510.0,0.13749248]
[1761228257191,0.03268056,109550.0,109540.0,0.1500734]
[1761228257192,0.02451042,109550.0,109540.0,0.1500734]
[1761228257398,0.36340736,109570.0,109550.0,0.137345]
[1761228257399,0.70306651,109570.0,109550.0,0.137345]
[1761228257703,0.51042,109570.0,109520.0,0.34886312]
[1761228257887,0.1453808,109570.0,109560.0,0.1373367]
[1761228258093,0.82409681,109570.0,109560.0,0.1373367]
[1761228258293,0.78050174,109570.0,109560.0,0.1373367]
[1761228258596,0.87175014,109570.0,109560.0,0.1373367]
[1761228258795,0.87383692,109570.0,109560.0,0.1325367]
[1761228259001,0.87383692,109570.0,109560.0,0.1229367]
[1761228259294,0.54919692,109570.0,109560.0,0.1181367]
[1761228259505,0.87383692,109570.0,109560.0,0.1181367]
[1761228259802,0.89007712,109570.0,109560.0,0.1181367]
[1761228260002,0.45824288,109570.0,109560.0,0.1181367]
[1761228260302,0.78384288,109570.0,109560.0,0.1307767]
[1761228260903,0.44882288,109570.0,109560.0,0.1307767]
[1761228261205,0.40922115,109570.0,109560.0,0.5307767]
[1761228261703,0.0275591,109570.0,109560.0,0.5307767]
[1761228261900,0.05710169,109580.0,109570.0,0.1373284]
[1761228262298,0.05710169,109580.0,109570.0,0.5373284]
[1761228263311,0.02447232,109580.0,109570.0,0.5373284]
[1761228263601,0.43549742,109580.0,109570.0,0.5373284]
[1761228263803,0.43649742,109580.0,109570.0,0.5373284]
[1761228264196,0.02747232,109580.0,109570.0,0.5373284]
[1761228264703,0.003,109580.0,109570.0,0.5373284]
[1761228265099,0.02927232,109590.0,109580.0,0.33351]
[1761228265609,0.02927232,109590.0,109580.0,0.73351]
[1761228266398,0.0048,109590.0,109580.0,0.73351]
[1761228266798,0.38319573,109590.0,109580.0,0.33351]
[1761228267396,0.0048,109590.0,109580.0,0.33351]
[1761228267822,0.0058,109590.0,109580.0,1.05807]
[1761228268004,0.0068,109590.0,109580.0,1.05807]
[1761228269197,0.65762088,109620.0,109600.0,0.4359334]
[1761228269500,0.37839573,109610.0,109600.0,0.4359334]
[1761228269696,0.64951573,109610.0,109600.0,0.4359334]
[1761228269933,0.67592066,109610.0,109600.0,0.4359334]
[1761228271103,0.67692066,109610.0,109600.0,0.4359334]
[1761228271911,0.02740493,109610.0,109600.0,0.4359334]
[1761228272103,0.47061073,109610.0,109600.0,0.4359334]
[1761228272302,0.63415566,109610.0,109600.0,0.45222818]
[1761228272504,0.76813566,109610.0,109600.0,0.45222818]
[1761228272812,0.76813566,109610.0,109590.0,0.3533361]
[1761228272813,0.4419734,109600.0,109590.0,0.3533361]
[1761228273003,0.84677406,109600.0,109590.0,0.3533361]
[1761228273703,0.84677406,109600.0,109590.0,0.26211]
[1761228273910,0.84677406,109600.0,109590.0,0.3533417]
[1761228274707,0.87124638,109600.0,109590.0,0.12663]
[1761228274904,0.3623517,109590.0,109580.0,0.77502756]
[1761228275102,0.74074743,109590.0,109580.0,0.77502756]
[1761228275307,0.76715236,109590.0,109580.0,0.77502756]
[1761228275509,0.76715236,109590.0,109580.0,0.58667]
[1761228275709,1.09147236,109590.0,109580.0,0.12663]
[1761228276004,1.09147236,109590.0,109580.0,0.26211]
[1761228276610,0.09124,109580.0,109570.0,0.15152402]
[1761228276912,0.09124,109580.0,109570.0,0.3533584]
[1761228276913,0.82038573,109580.0,109570.0,0.3533584]
[1761228277116,0.84679066,109580.0,109570.0,0.3533584]
[1761228277514,0.84679066,109580.0,109570.0,0.26211]
[1761228277808,0.84679066,109580.0,109570.0,0.3533584]
[1761228278204,0.84679066,109580.0,109570.0,0.26211]
[1761228278397,0.84679066,109580.0,109570.0,0.3533584]
[1761228278603,0.84679066,109580.0,109570.0,0.26211]
[1761228278799,0.3623684,109570.0,109560.0,0.26211]
[1761228278997,0.3623684,109570.0,109540.0,1.60847763]
[1761228278998,1.06512413,109570.0,109540.0,0.00456433]
[1761228279231,0.30806,109520.0,109510.0,0.25895]
[1761228279408,0.3624184,109510.0,109500.0,0.26360804]
[1761228279599,0.74081413,109510.0,109500.0,0.00465804]
[1761228279799,0.76718908,109510.0,109500.0,0.00465804]
[1761228280011,0.76718908,109510.0,109500.0,0.26360804]
[1761228281013,0.76718908,109510.0,109500.0,0.13228804]
[1761228281308,0.76718908,109510.0,109500.0,0.00565804]
[1761228281309,0.7916614,109510.0,109500.0,0.00565804]
[1761228282814,0.76718908,109510.0,109500.0,0.00565804]
[1761228283015,0.362435,109490.0,109480.0,0.30227]
[1761228283211,0.64951573,109490.0,109480.0,0.3502734]
[1761228283417,0.64951573,109490.0,109480.0,1.8502734]
[1761228283418,0.27112,109490.0,109480.0,1.8502734]
[1761228283716,0.27112,109490.0,109480.0,1.86633073]
[1761228283916,0.27120155,109490.0,109480.0,1.86633073]
[1761228284431,0.36251655,109490.0,109480.0,1.86733073]
[1761228284917,0.36251655,109490.0,109480.0,1.77600733]
[1761228285119,0.36251655,109490.0,109480.0,1.63063]
[1761228285318,0.36251655,109490.0,109480.0,0.13063]
[1761228285817,0.36251655,109490.0,109480.0,0.26295]
[1761228286019,0.68731655,109490.0,109480.0,0.26295]
[1761228286214,0.71365315,109490.0,109480.0,0.26295]
[1761228286520,0.71365315,109490.0,109480.0,0.3542734]
[1761228286723,0.71365315,109490.0,109480.0,0.26295]
[1761228286921,0.71365315,109490.0,109480.0,0.13063]
[1761228287123,0.71365315,109490.0,109480.0,0.004]
[1761228287317,1.09204888,109490.0,109480.0,0.004]
[1761228288012,1.09204888,109490.0,109480.0,0.2219534]
[1761228288222,1.09204888,109490.0,109480.0,0.3542734]
[1761228289218,0.62233815,109490.0,109480.0,0.3542734]
[1761228290009,1.02613341,109490.0,109480.0,0.7542734]
[1761228290211,1.49584414,109490.0,109480.0,0.66295]
[1761228290411,1.49584414,109490.0,109480.0,0.26295]
[1761228290714,1.40452914,109490.0,109480.0,0.3542734]
[1761228291427,1.02613341,109490.0,109480.0,0.3542734]
[1761228292226,1.02613341,109490.0,109480.0,0.7542734]
[1761228292720,1.11744841,109490.0,109480.0,0.7542734]
[1761228293315,0.70137341,109490.0,109480.0,0.7532734]
[1761228293625,0.97205341,109490.0,109480.0,0.7542734]
[1761228294115,0.70137341,109490.0,109480.0,0.7542734]
[1761228294717,1.04680871,109490.0,109480.0,0.7542734]
[1761228295221,0.95549341,109490.0,109480.0,0.7532734]
[1761228295422,0.95549341,109490.0,109480.0,0.7542734]
[1761228295914,8.155e-05,109490.0,109480.0,0.7542734]
[1761228296108,8.155e-05,109490.0,109480.0,1.0789934]
[1761228297322,8.155e-05,109490.0,109480.0,1.0769934]
[1761228297522,8.155e-05,109490.0,109480.0,1.0799934]
[1761228298922,8.155e-05,109490.0,109480.0,1.2283934]
[1761228299321,0.07963,109520.0,109490.0,0.0913154]
[1761228299522,0.6700472,109530.0,109520.0,0.3022103]
[1761228299716,0.69569571,109530.0,109520.0,0.3022103]
[1761228299916,0.74945144,109530.0,109520.0,0.3022103]
[1761228300115,1.07409144,109530.0,109520.0,0.3022103]
[1761228300417,1.09227557,109530.0,109520.0,0.10546]
[1761228300621,0.4211403,109520.0,109510.0,0.3022128]
[1761228300823,0.79953603,109520.0,109510.0,0.3022128]
[1761228302225,0.825105,109520.0,109510.0,0.001]
[1761228302926,0.84957732,109520.0,109510.0,0.001]
[1761228303121,0.88220669,109520.0,109510.0,0.001]
[1761228303419,0.90667937,109520.0,109510.0,0.001]
[1761228303819,0.87405,109520.0,109510.0,0.001]
[1761228304219,0.0913063,109500.0,109490.0,0.3022344]
[1761228304429,0.82397531,109500.0,109490.0,0.21092]
[1761228304625,0.84954428,109500.0,109490.0,0.3022362]
[1761228305726,0.37984225,109500.0,109490.0,0.3022362]
[1761228305920,0.35427328,109500.0,109490.0,0.3022362]
[1761228306116,0.32985,109500.0,109490.0,0.3022362]
[1761228306318,0.71997575,109510.0,109500.0,0.3022263]
[1761228306523,0.42798012,109510.0,109500.0,0.3022263]
[1761228306723,0.72705115,109510.0,109500.0,0.3022263]
[1761228306923,1.13101585,109510.0,109500.0,0.3022263]
[1761228307126,0.4211563,109500.0,109490.0,0.003]
[1761228307319,0.8810614,109500.0,109490.0,0.003]
[1761228307636,0.874066,109500.0,109490.0,0.001]
[1761228308017,0.90676696,109500.0,109490.0,0.21192]
[1761228308223,0.90676696,109500.0,109490.0,0.001]
[1761228308528,0.874066,109500.0,109490.0,0.004]
[1761228308724,0.874066,109500.0,109490.0,0.003]
[1761228308915,0.3454346,109490.0,109480.0,0.302244]
[1761228309117,0.12406958,109490.0,109480.0,0.302243]
[1761228309315,0.45270355,109490.0,109480.0,0.302243]
[1761228309825,0.45270355,109490.0,109470.0,0.58108107]
[1761228309826,0.07573,109480.0,109470.0,0.79199817]
[1761228310026,0.35444073,109480.0,109470.0,0.79199817]
[1761228310932,0.02459073,109480.0,109470.0,1.19199817]
[1761228311129,0.05734571,109490.0,109480.0,0.325103]
[1761228311621,0.02459073,109490.0,109480.0,0.325103]
[1761228312024,0.02459073,109490.0,109480.0,0.302243]
[1761228312222,0.05734571,109490.0,109480.0,0.302243]
[1761228312531,0.17792571,109490.0,109480.0,0.302243]
[1761228312727,0.14517073,109490.0,109480.0,0.302243]
[1761228312928,0.14517073,109490.0,109480.0,0.303243]
[1761228313430,0.78117784,109490.0,109480.0,0.21192]
[1761228313730,1.15602108,109490.0,109480.0,0.004]
[1761228313935,0.3454531,109470.0,109460.0,0.30682667]
[1761228314233,0.76639167,109470.0,109460.0,0.30682907]
[1761228314438,0.79196064,109470.0,109460.0,0.30682907]
[1761228314619,0.32223181,109470.0,109460.0,0.30682907]
[1761228314926,0.29666284,109470.0,109460.0,0.30682907]
[1761228315127,0.29666284,109470.0,109460.0,0.31282907]
[1761228315329,0.38799594,109470.0,109460.0,0.31282907]
[1761228315633,0.38799594,109470.0,109460.0,0.33254015]
[1761228315836,0.29666284,109470.0,109460.0,0.33254015]
[1761228316525,0.38799594,109470.0,109460.0,0.33254015]
[1761228316735,0.7671111,109470.0,109460.0,0.33254015]
[1761228316924,0.79268007,109470.0,109460.0,0.33254015]
[1761228317125,0.6392579,109470.0,109460.0,0.32454015]
[1761228317445,0.5479248,109470.0,109460.0,0.32454015]
[1761228318322,0.5479248,109470.0,109460.0,0.32654015]
[1761228318525,0.28943755,109470.0,109460.0,0.32654015]
[1761228318831,0.02459569,109470.0,109460.0,0.32654015]
[1761228319030,0.27871569,109470.0,109460.0,0.32654015]
[1761228319432,0.50413432,109480.0,109470.0,0.331953]
[1761228319636,0.345453,109470.0,109460.0,0.35623325]
[1761228319836,0.62852315,109470.0,109460.0,0.35623325]
[1761228320135,0.53817622,109470.0,109460.0,0.35623325]
[1761228320838,0.53817622,109470.0,109460.0,0.35523325]
[1761228321233,0.27968897,109470.0,109460.0,0.35523325]
[1761228321433,0.51260725,109470.0,109460.0,0.35623325]
[1761228321629,0.62950922,109470.0,109460.0,0.35523325]
[1761228321834,0.62950922,109470.0,109460.0,0.11462005]
[1761228322136,0.65409212,109470.0,109460.0,0.02327875]
[1761228322433,1.01172638,109470.0,109460.0,0.00756767]
[1761228322636,0.3454697,109450.0,109440.0,7.204e-05]
[1761228322835,0.24182,109430.0,109420.0,0.29973404]
[1761228323037,0.61625722,109430.0,109420.0,1.7243915]
[1761228323234,0.61724262,109430.0,109420.0,1.7243915]
[1761228323828,0.52597362,109430.0,109420.0,1.8157662]
[1761228324430,0.52597362,109430.0,109420.0,1.8187662]
[1761228324632,0.61734002,109430.0,109420.0,1.8187662]
[1761228325136,0.61734002,109430.0,109420.0,1.8197662]
[1761228325137,0.52597362,109430.0,109420.0,1.8197662]
[1761228326037,0.25174676,109450.0,109440.0,0.10781]
[1761228326230,0.22722,109450.0,109440.0,0.21838]
[1761228326539,0.48570725,109450.0,109440.0,0.309738]
[1761228326840,0.29455,109440.0,109430.0,0.3097425]
[1761228327133,0.55303725,109440.0,109430.0,0.3097425]
[1761228327940,0.29455,109440.0,109430.0,0.3117425]
[1761228329429,0.29455,109440.0,109430.0,0.3127425]
[1761228329627,0.34983825,109450.0,109430.0,0.3127425]
[1761228329628,0.48570725,109450.0,109440.0,0.309738]
[1761228329862,0.48570725,109470.0,109460.0,0.3097213]
[1761228330034,0.81082725,109470.0,109460.0,0.3097213]
[1761228330236,0.22722,109470.0,109460.0,0.3097213]
[1761228330840,0.22722,109470.0,109460.0,0.6348413]
[1761228331342,0.22822,109470.0,109460.0,0.6348413]
[1761228332040,0.001,109470.0,109460.0,1.0348413]
[1761228332244,0.001,109470.0,109460.0,1.0577013]
[1761228332635,0.11839,109470.0,109460.0,1.0358413]
[1761228332838,0.23202,109510.0,109500.0,0.091308]
[1761228333147,0.12219,109510.0,109500.0,0.309688]
[1761228333341,0.0048,109510.0,109500.0,0.309688]
[1761228333852,0.0048,109510.0,109500.0,0.726908]
[1761228334141,0.06733,109540.0,109530.0,0.3096629]
[1761228334142,0.55303725,109540.0,109530.0,0.3096629]
[1761228334342,0.23202,109550.0,109540.0,0.21838]
[1761228334649,0.29455,109540.0,109530.0,0.5242479]
[1761228334849,0.55303725,109540.0,109530.0,0.0912829]
[1761228336043,0.55503725,109540.0,109530.0,0.0912829]
[1761228337040,0.55503725,109540.0,109530.0,0.3096629]
[1761228338143,0.55503725,109540.0,109530.0,0.0912829]
[1761228338343,0.55503725,109540.0,109530.0,0.3096629]
[1761228339056,0.55503725,109540.0,109530.0,0.0912829]
[1761228339252,1.37123585,109540.0,109510.0,0.0912952]
[1761228339449,0.55303725,109520.0,109510.0,0.3962144]
[1761228339940,0.87803725,109520.0,109510.0,0.3962144]
[1761228340249,0.87803725,109520.0,109500.0,0.0913034]
[1761228340453,0.29455,109500.0,109490.0,0.0913141]
[1761228340750,0.87799725,109500.0,109480.0,0.0913201]
[1761228340953,0.29455,109480.0,109470.0,0.57304133]
[1761228341264,0.55303725,109480.0,109470.0,0.57304133]
[1761228341449,0.53241126,109480.0,109470.0,0.57304133]
[1761228341853,0.53241126,109480.0,109470.0,0.66437433]
[1761228342049,0.85737126,109480.0,109460.0,0.09590337]
[1761228342352,0.48570725,109470.0,109460.0,0.09590337]
[1761228342554,0.48570725,109470.0,109460.0,0.00456767]
[1761228342748,0.48570725,109470.0,109460.0,0.09590897]
[1761228343251,0.97704015,109470.0,109460.0,0.00456767]
[1761228343454,0.99964074,109470.0,109460.0,0.00456767]
[1761228344269,0.99964074,109470.0,109450.0,8.908e-05]
[1761228344270,0.29455,109460.0,109450.0,8.908e-05]
[1761228344453,0.87807725,109460.0,109450.0,8.908e-05]
[1761228345451,0.87807725,109460.0,109450.0,0.00108908]
[1761228345755,1.36941845,109460.0,109450.0,0.00208908]
[1761228345950,1.1335302,109460.0,109450.0,0.00208908]
[1761228346347,1.39201745,109460.0,109450.0,0.00208908]
[1761228346852,0.87807725,109460.0,109450.0,0.09343868]
[1761228347445,0.29455,109460.0,109450.0,0.31181868]
[1761228347754,0.55303725,109460.0,109450.0,0.20124868]
[1761228347949,0.55303725,109460.0,109450.0,0.09343868]
[1761228348348,0.55303725,109460.0,109450.0,0.20124868]
[1761228348349,0.29455,109460.0,109450.0,0.20124868]
[1761228348548,0.55303725,109460.0,109450.0,0.20124868]
[1761228349146,0.29455,109460.0,109450.0,0.31181868]
[1761228350153,0.58356725,109470.0,109460.0,0.30972]
[1761228350154,0.22722,109470.0,109460.0,0.30972]
[1761228351151,0.3185529,109470.0,109460.0,0.30972]
[1761228351350,0.57704015,109470.0,109460.0,0.30972]
[1761228351750,0.48570725,109470.0,109460.0,0.30972]
[1761228352147,0.61967,109480.0,109460.0,1.80972]
[1761228352353,0.96948185,109480.0,109460.0,1.5913359]
[1761228352758,0.96948185,109480.0,109460.0,1.5933359]
[1761228352759,0.48582725,109470.0,109460.0,1.5933359]
[1761228353046,0.87827725,109480.0,109470.0,0.3102629]
[1761228353448,0.87827725,109480.0,109470.0,0.21893]
[1761228353654,0.96960185,109480.0,109460.0,1.5933348]
[1761228353854,0.25848725,109470.0,109460.0,1.5933348]
[1761228354059,0.48582725,109470.0,109460.0,1.5933348]
[1761228354448,0.48582725,109470.0,109460.0,1.5923348]
[1761228354961,0.48582725,109470.0,109460.0,0.0923348]
[1761228355261,0.48582725,109470.0,109460.0,0.0933412]
[1761228355470,0.57716015,109470.0,109460.0,0.0923412]
[1761228355658,0.57716015,109470.0,109460.0,0.0943412]
[1761228355859,0.48582725,109470.0,109460.0,0.0943412]
[1761228356051,0.57716015,109470.0,109460.0,0.0943412]
[1761228356256,0.57716015,109470.0,109460.0,0.0943391]
[1761228356458,0.48582725,109470.0,109460.0,0.0943391]
[1761228356677,0.48582725,109470.0,109460.0,0.0933391]
[1761228356965,0.57715795,109470.0,109460.0,0.0933391]
[1761228357462,0.57715795,109470.0,109460.0,0.002]
[1761228357659,0.22734,109470.0,109460.0,0.093339]
[1761228357865,0.22734,109470.0,109460.0,0.312269]
[1761228357866,0.48582725,109470.0,109460.0,0.312269]
[1761228358047,0.22734,109470.0,109460.0,0.312269]
[1761228358253,0.48582725,109470.0,109460.0,0.312269]
[1761228358652,0.22734,109470.0,109460.0,0.311269]
[1761228358857,0.22734,109470.0,109460.0,0.313269]
[1761228359050,0.11022,109470.0,109460.0,0.313269]
[1761228359254,0.29467,109480.0,109470.0,0.3102607]
[1761228359665,0.22734,109490.0,109480.0,0.3102491]
[1761228360048,0.48582725,109490.0,109480.0,0.0913191]
[1761228360461,0.22734,109490.0,109480.0,0.3102491]
[1761228360664,0.29467,109500.0,109490.0,0.3102441]
[1761228360852,0.22734,109500.0,109490.0,0.6353241]
[1761228361058,0.2925,109500.0,109490.0,0.6353241]
[1761228361360,0.64229295,109500.0,109490.0,0.54401]
[1761228361564,0.06516,109480.0,109470.0,0.3112535]
[1761228361768,0.55098725,109480.0,109470.0,0.5187135]
[1761228362060,0.2925,109460.0,109450.0,1.59143158]
[1761228362265,0.55098725,109460.0,109450.0,1.91663158]
[1761228362662,0.64232635,109460.0,109450.0,8.908e-05]
[1761228363453,0.55091125,109460.0,109450.0,0.09143678]
[1761228363657,0.55091125,109460.0,109450.0,0.31036678]
[1761228364060,0.55091125,109460.0,109450.0,0.31336678]
[1761228364366,0.4817674,109480.0,109460.0,0.0913364]
[1761228364556,0.22734,109470.0,109460.0,0.3102664]
[1761228365169,0.22734,109470.0,109460.0,0.21893]
[1761228365170,0.3186709,109470.0,109460.0,0.21893]
[1761228365463,0.2925,109460.0,109450.0,0.09943658]
[1761228365662,0.64232645,109460.0,109450.0,0.00808908]
[1761228365867,0.64232645,109460.0,109450.0,0.00308908]
[1761228366068,0.64232645,109460.0,109450.0,8.908e-05]
[1761228366662,0.66464735,109460.0,109450.0,8.908e-05]
[1761228366968,0.55098725,109460.0,109450.0,0.09643668]
[1761228367269,0.31483612,109460.0,109450.0,0.31536668]
[1761228367468,0.24967612,109470.0,109460.0,0.1925692]
[1761228367680,0.22734,109470.0,109460.0,0.1925692]
[1761228367879,0.48582725,109470.0,109460.0,0.1925692]
[1761228368079,0.57715805,109470.0,109450.0,0.31836478]
[1761228368281,0.55098725,109460.0,109450.0,0.31836478]
[1761228368584,0.2925,109460.0,109450.0,0.31836658]
[1761228368983,0.2925,109460.0,109450.0,0.31336658]
[1761228369282,0.2925,109460.0,109450.0,0.09143658]
[1761228369783,0.64232645,109460.0,109450.0,0.00508908]
[1761228370082,0.990286,109460.0,109450.0,0.00808908]
[1761228370779,1.42288562,109460.0,109450.0,0.00608908]
[1761228370980,0.3838559,109440.0,109430.0,0.32564]
[1761228371179,0.87662725,109440.0,109430.0,0.32564]
[1761228371379,0.9903428,109440.0,109430.0,0.32564]
[1761228371779,0.8989868,109440.0,109430.0,0.32564]
[1761228371985,0.9903443,109440.0,109430.0,0.32564]
[1761228372180,0.8989868,109440.0,109430.0,0.33064]
[1761228372579,0.8989868,109440.0,109430.0,0.45490206]
[1761228373285,0.8989868,109440.0,109430.0,0.33364]
[1761228373486,0.8989868,109440.0,109430.0,0.4250059]
[1761228374081,0.8989868,109440.0,109430.0,0.33364]
[1761228374487,0.8989868,109440.0,109430.0,0.4250059]
[1761228374784,0.8989868,109440.0,109430.0,0.0993659]
[1761228374990,0.2925,109440.0,109430.0,0.3182959]
[1761228375180,0.22734,109450.0,109440.0,0.310287]
[1761228375375,0.22734,109450.0,109440.0,0.21893]
[1761228375586,0.2925,109440.0,109430.0,0.3182905]
[1761228375983,0.2925,109440.0,109430.0,0.4666905]
[1761228376184,0.2925,109440.0,109430.0,0.4616905]
[1761228376383,0.2925,109440.0,109430.0,0.4586905]
[1761228377185,0.2925,109440.0,109430.0,0.4596905]
[1761228377586,0.55098725,109440.0,109430.0,0.4596905]
[1761228377892,0.57338962,109440.0,109430.0,0.4636905]
[1761228378687,0.31490237,109440.0,109430.0,0.4606905]
[1761228378876,0.2925,109440.0,109430.0,0.4606905]
[1761228381892,0.2925,109440.0,109430.0,0.3122905]
[1761228382283,0.2925,109440.0,109430.0,0.22093]
[1761228382489,0.0913659,109430.0,109420.0,0.03373863]
[1761228382683,0.69799916,109430.0,109420.0,0.03373863]
[1761228382988,0.72045584,109430.0,109420.0,0.00456934]
[1761228383691,0.72045584,109430.0,109420.0,0.00756934]
[1761228383891,0.20087,109410.0,109400.0,0.54244607]
[1761228384091,0.20087,109410.0,109400.0,0.65624309]
[1761228384388,0.20087,109410.0,109400.0,0.12558067]
[1761228384695,0.20087,109410.0,109400.0,0.091391]
[1761228384990,0.25651,109400.0,109390.0,0.6128841]
[1761228385192,0.25658328,109400.0,109390.0,0.6128841]
[1761228385585,0.25658328,109400.0,109390.0,0.62630481]
[1761228385789,0.25658328,109400.0,109390.0,0.65544134]
[1761228386286,0.25658328,109400.0,109390.0,0.64702063]
[1761228386484,0.00107328,109400.0,109390.0,0.65602063]
[1761228387085,0.00107328,109400.0,109390.0,1.05602063]
[1761228387487,0.25050328,109400.0,109390.0,0.65602063]
[1761228388687,0.15328328,109400.0,109390.0,0.65602063]
[1761228388880,0.00107328,109400.0,109390.0,0.65602063]
[1761228389086,0.09915328,109400.0,109390.0,0.65602063]
[1761228389285,0.00107328,109400.0,109390.0,0.65602063]
[1761228389499,0.00107328,109400.0,109390.0,1.05602063]
[1761228389690,0.25094,109420.0,109410.0,0.2770126]
[1761228389897,0.3423143,109420.0,109410.0,0.18563]
[1761228390191,0.63023326,109420.0,109410.0,0.0913826]
[1761228390392,0.72160896,109420.0,109400.0,0.602337]
[1761228390582,0.63023326,109420.0,109400.0,0.602337]
[1761228391103,0.72160816,109420.0,109400.0,0.602337]
[1761228391395,0.72260816,109420.0,109410.0,0.007]
[1761228391788,0.74391951,109420.0,109400.0,0.4167492]
[1761228391988,0.66597586,109410.0,109400.0,0.33336]
[1761228392187,0.1953,109410.0,109400.0,0.099391]
[1761228392396,0.2866826,109410.0,109400.0,0.008]
[1761228392585,0.66597586,109410.0,109400.0,0.02142303]
[1761228392791,0.66597586,109410.0,109400.0,0.01342303]
[1761228392792,0.2866826,109410.0,109400.0,0.01342303]
[1761228393098,0.2866993,109390.0,109380.0,0.00468154]
[1761228393298,0.99127256,109390.0,109380.0,0.00468154]
[1761228393600,1.01358586,109390.0,109380.0,0.00468154]
[1761228393894,1.41358586,109390.0,109380.0,0.00468154]
[1761228394093,0.27779953,109370.0,109360.0,0.32528]
[1761228394288,0.65709279,109370.0,109360.0,0.32528]
[1761228394489,0.65709279,109370.0,109360.0,0.35455349]
[1761228395191,0.57466656,109370.0,109360.0,0.02927349]
[1761228395497,0.1963733,109370.0,109360.0,0.2860544]
[1761228395700,0.1963733,109370.0,109360.0,0.19463]
[1761228396198,0.1963733,109370.0,109360.0,0.2910544]
[1761228396888,0.0010733,109370.0,109360.0,1.0521444]
[1761228397394,0.0010733,109370.0,109360.0,1.04202491]
[1761228399084,0.0991533,109370.0,109360.0,1.04202491]
[1761228399293,0.1963733,109370.0,109360.0,1.04202491]
[1761228399596,0.0010733,109370.0,109360.0,1.04202491]
[1761228401683,0.0991533,109370.0,109360.0,1.04202491]
[1761228402092,0.0010733,109370.0,109360.0,1.04202491]
[1761228402293,0.0991533,109370.0,109360.0,1.04202491]
[1761228402794,0.1963733,109370.0,109360.0,0.31638491]
[1761228402989,0.1963733,109370.0,109360.0,0.64194491]
[1761228405297,0.66708256,109370.0,109360.0,0.03933051]
[1761228406099,0.68935298,109370.0,109360.0,0.03933051]
[1761228407401,1.01491298,109370.0,109360.0,0.03933051]
[1761228407586,1.01491298,109370.0,109360.0,0.03833051]
[1761228407791,1.01491298,109370.0,109360.0,0.03733051]
[1761228408097,1.01391298,109370.0,109360.0,0.02933051]